[Event "*** MasterClass Titled Tuesday Blitz"]
[Site "Chess.com"]
[Date "2017.11.07"]
[Round "9"]
[White "VitaliyBernadskiy"]
[Black "GMKrikor"]
[Result "1/2-1/2"]
[WhiteElo "2575"]
[BlackElo "2607"]
[TimeControl "180+2"]
[EndTime "16:07:05 PST"]
[Termination "Game drawn - insufficient material"]

1. d4 {[%clk 0:03:01.9]} 1... Nf6 {[%clk 0:03:00.9]} 2. Nf3 {[%clk 0:03:03.4]}
2... e6 {[%clk 0:03:00.8]} 3. g3 {[%clk 0:03:04.2]} 3... b6 {[%clk 0:02:52]} 4.
Bg2 {[%clk 0:03:04.6]} 4... Bb7 {[%clk 0:02:53.6]} 5. O-O {[%clk 0:03:06.1]}
5... Be7 {[%clk 0:02:55.2]} 6. b3 {[%clk 0:03:06.8]} 6... O-O {[%clk 0:02:55.7]}
7. c4 {[%clk 0:03:07.9]} 7... d6 {[%clk 0:02:47.7]} 8. Bb2 {[%clk 0:03:08.6]}
8... Nbd7 {[%clk 0:02:46.6]} 9. Qc2 {[%clk 0:03:09.5]} 9... c5 {[%clk
0:02:42.5]} 10. e3 {[%clk 0:03:08.4]} 10... cxd4 {[%clk 0:02:42.8]} 11. Bxd4
{[%clk 0:03:08.1]} 11... e5 {[%clk 0:02:42.6]} 12. Bb2 {[%clk 0:03:08.7]} 12...
Rc8 {[%clk 0:02:42.6]} 13. Nc3 {[%clk 0:03:09.4]} 13... a6 {[%clk 0:02:43.6]}
14. Rad1 {[%clk 0:03:09.7]} 14... Qc7 {[%clk 0:02:43]} 15. Nh4 {[%clk
0:03:08.7]} 15... g6 {[%clk 0:02:38.1]} 16. Bxb7 {[%clk 0:03:07.4]} 16... Qxb7
{[%clk 0:02:39.3]} 17. Qe2 {[%clk 0:02:57.6]} 17... Rfd8 {[%clk 0:02:33.8]} 18.
Ng2 {[%clk 0:02:40.9]} 18... Ne4 {[%clk 0:02:04.4]} 19. Nd5 {[%clk 0:02:39.4]}
19... Bf8 {[%clk 0:02:03.6]} 20. f4 {[%clk 0:02:35.8]} 20... f5 {[%clk
0:02:01.1]} 21. g4 {[%clk 0:02:36.8]} 21... fxg4 {[%clk 0:01:23.7]} 22. Qxg4
{[%clk 0:02:37]} 22... Ndf6 {[%clk 0:01:21.6]} 23. Qe6+ {[%clk 0:02:37.6]} 23...
Qf7 {[%clk 0:01:21.6]} 24. Nxf6+ {[%clk 0:02:38.6]} 24... Nxf6 {[%clk
0:01:21.9]} 25. Qxf7+ {[%clk 0:02:40]} 25... Kxf7 {[%clk 0:01:23]} 26. fxe5
{[%clk 0:02:41.1]} 26... dxe5 {[%clk 0:01:24.1]} 27. Rxd8 {[%clk 0:02:41.6]}
27... Rxd8 {[%clk 0:01:25.3]} 28. Bxe5 {[%clk 0:02:43.2]} 28... Be7 {[%clk
0:01:26.2]} 29. Nf4 {[%clk 0:02:44.6]} 29... Ng4 {[%clk 0:01:08.5]} 30. Bd4
{[%clk 0:02:29.9]} 30... Bc5 {[%clk 0:00:47.3]} 31. Nd3+ {[%clk 0:02:30.3]}
31... Ke6 {[%clk 0:00:48.8]} 32. h3 {[%clk 0:02:19.1]} 32... Bxd4 {[%clk
0:00:30]} 33. exd4 {[%clk 0:02:18.2]} 33... Rxd4 {[%clk 0:00:31.2]} 34. Nf4+
{[%clk 0:02:16.1]} 34... Ke5 {[%clk 0:00:32.5]} 35. Ne2 {[%clk 0:02:17]} 35...
Rd2 {[%clk 0:00:28.9]} 36. Rf7 {[%clk 0:02:04.6]} 36... Ke6 {[%clk 0:00:19.4]}
37. Rb7 {[%clk 0:01:52.3]} 37... Rxe2 {[%clk 0:00:17.1]} 38. hxg4 {[%clk
0:01:48.5]} 38... Rxa2 {[%clk 0:00:17.6]} 39. Rxb6+ {[%clk 0:01:49.6]} 39... Ke5
{[%clk 0:00:19]} 40. c5 {[%clk 0:01:45.9]} 40... a5 {[%clk 0:00:18.4]} 41. Rb5
{[%clk 0:01:46.3]} 41... Kd5 {[%clk 0:00:16.7]} 42. Rb7 {[%clk 0:01:45.9]} 42...
Kxc5 {[%clk 0:00:16.9]} 43. Rxh7 {[%clk 0:01:47.3]} 43... Ra3 {[%clk 0:00:15.5]}
44. Rb7 {[%clk 0:01:47]} 44... Kd4 {[%clk 0:00:14.1]} 45. Kf2 {[%clk 0:01:47.4]}
45... Kc3 {[%clk 0:00:15.4]} 46. Rb5 {[%clk 0:01:45.1]} 46... Rxb3 {[%clk
0:00:14.5]} 47. Rxa5 {[%clk 0:01:46.1]} 47... Kd4 {[%clk 0:00:15.5]} 48. Rg5
{[%clk 0:01:45.4]} 48... Ke4 {[%clk 0:00:16.9]} 49. Rxg6 {[%clk 0:01:46.2]}
49... Kf4 {[%clk 0:00:18.3]} 50. Kg2 {[%clk 0:01:47.4]} 50... Rg3+ {[%clk
0:00:18.5]} 51. Kh2 {[%clk 0:01:48.1]} 51... Rxg4 {[%clk 0:00:20.4]} 52. Rxg4+
{[%clk 0:01:48.6]} 52... Kxg4 {[%clk 0:00:21.7]} 1/2-1/2

[Event "*** MasterClass Titled Tuesday Blitz"]
[Site "Chess.com"]
[Date "2017.11.07"]
[Round "9"]
[White "timator"]
[Black "florianschwabeneder"]
[Result "1-0"]
[WhiteElo "2428"]
[BlackElo "2420"]
[TimeControl "180+2"]
[EndTime "16:07:14 PST"]
[Termination "timator won by resignation"]

1. Nf3 {[%clk 0:03:01.9]} 1... Nf6 {[%clk 0:02:59.8]} 2. g3 {[%clk 0:03:03.8]}
2... b6 {[%clk 0:02:58.7]} 3. Bg2 {[%clk 0:03:05.7]} 3... Bb7 {[%clk 0:03:00.1]}
4. O-O {[%clk 0:03:07.4]} 4... c5 {[%clk 0:03:01.4]} 5. d3 {[%clk 0:03:00.7]}
5... d5 {[%clk 0:03:01.5]} 6. Nbd2 {[%clk 0:03:02.6]} 6... Qc8 {[%clk
0:02:54.8]} 7. Re1 {[%clk 0:03:01.7]} 7... e6 {[%clk 0:02:52.7]} 8. e3 {[%clk
0:03:02.9]} 8... Be7 {[%clk 0:02:53]} 9. e4 {[%clk 0:03:04.8]} 9... Nc6 {[%clk
0:02:48.1]} 10. exd5 {[%clk 0:03:03]} 10... Nxd5 {[%clk 0:02:47.7]} 11. Ne4
{[%clk 0:03:03.4]} 11... O-O {[%clk 0:02:45.4]} 12. a3 {[%clk 0:03:04]} 12...
Qd7 {[%clk 0:02:41.9]} 13. Bg5 {[%clk 0:03:04.5]} 13... Bxg5 {[%clk 0:02:40.7]}
14. Nexg5 {[%clk 0:03:05.5]} 14... Rfe8 {[%clk 0:02:37.8]} 15. Qe2 {[%clk
0:03:05.1]} 15... Nd4 {[%clk 0:02:09.8]} 16. Nxd4 {[%clk 0:02:51.6]} 16... cxd4
{[%clk 0:02:10.8]} 17. Qe4 {[%clk 0:02:50.1]} 17... g6 {[%clk 0:01:13.2]} 18.
Qxd4 {[%clk 0:02:49.8]} 18... Rad8 {[%clk 0:00:52.1]} 19. Ne4 {[%clk 0:02:30.3]}
19... f5 {[%clk 0:00:51.6]} 20. Qxd5 {[%clk 0:02:21.5]} 20... Bxd5 {[%clk
0:00:48.5]} 21. Nf6+ {[%clk 0:02:22.4]} 21... Kf7 {[%clk 0:00:49.4]} 22. Nxd7
{[%clk 0:02:24]} 22... Rxd7 {[%clk 0:00:49.9]} 23. Bxd5 {[%clk 0:02:24.5]} 23...
Rxd5 {[%clk 0:00:50.9]} 24. Re2 {[%clk 0:02:26]} 24... Rc8 {[%clk 0:00:47.7]}
25. Rae1 {[%clk 0:02:26.4]} 25... Rc6 {[%clk 0:00:48.7]} 26. f4 {[%clk
0:02:25.7]} 26... Kf6 {[%clk 0:00:46.5]} 27. Kf2 {[%clk 0:02:26.1]} 27... h6
{[%clk 0:00:47.6]} 28. Ke3 {[%clk 0:02:24.2]} 28... g5 {[%clk 0:00:46.4]} 29.
Kd2 {[%clk 0:02:22]} 29... gxf4 {[%clk 0:00:45.8]} 30. gxf4 {[%clk 0:02:23.3]}
30... Rd4 {[%clk 0:00:47]} 31. Rf2 {[%clk 0:02:24.1]} 31... Rc7 {[%clk
0:00:44.4]} 32. Rg1 {[%clk 0:02:25]} 32... Rg7 {[%clk 0:00:38.2]} 33. Rxg7
{[%clk 0:02:24.6]} 33... Kxg7 {[%clk 0:00:39.7]} 34. Ke3 {[%clk 0:02:25.6]}
34... Rd7 {[%clk 0:00:37.9]} 35. Rg2+ {[%clk 0:02:26.7]} 35... Kf6 {[%clk
0:00:39]} 36. d4 {[%clk 0:02:28.1]} 36... b5 {[%clk 0:00:36.5]} 37. b3 {[%clk
0:02:28.4]} 37... a5 {[%clk 0:00:30.8]} 38. Kd3 {[%clk 0:02:25.4]} 38... b4
{[%clk 0:00:29.7]} 39. axb4 {[%clk 0:02:24]} 39... axb4 {[%clk 0:00:30.8]} 40.
c4 {[%clk 0:02:25.1]} 40... bxc3 {[%clk 0:00:30.7]} 41. Kxc3 {[%clk 0:02:27]}
41... Rc7+ {[%clk 0:00:30.3]} 42. Kd3 {[%clk 0:02:28.3]} 42... Rc1 {[%clk
0:00:28.9]} 43. b4 {[%clk 0:02:21.3]} 43... Ke7 {[%clk 0:00:29.2]} 44. Rg6
{[%clk 0:01:54.9]} 44... Kd6 {[%clk 0:00:27.2]} 45. Rxh6 {[%clk 0:01:55.6]}
45... Rf1 {[%clk 0:00:27.1]} 46. Rh8 {[%clk 0:01:47.2]} 46... Rxf4 {[%clk
0:00:25.2]} 47. h4 {[%clk 0:01:48.3]} 47... Rf3+ {[%clk 0:00:19.6]} 48. Kc4
{[%clk 0:01:48.6]} 48... Rh3 {[%clk 0:00:20.3]} 49. h5 {[%clk 0:01:48.4]} 49...
f4 {[%clk 0:00:21.1]} 50. h6 {[%clk 0:01:49.4]} 50... f3 {[%clk 0:00:21.9]} 51.
Kd3 {[%clk 0:01:46]} 51... f2+ {[%clk 0:00:14.2]} 52. Ke2 {[%clk 0:01:47]} 52...
Rf3 {[%clk 0:00:15.1]} 53. Kf1 {[%clk 0:01:48.3]} 53... Kd5 {[%clk 0:00:13.2]}
54. h7 {[%clk 0:01:48]} 54... Ke4 {[%clk 0:00:14.5]} 55. Re8 {[%clk 0:01:42.3]}
1-0

[Event "*** MasterClass Titled Tuesday Blitz"]
[Site "Chess.com"]
[Date "2017.11.07"]
[Round "9"]
[White "Man-Chuk"]
[Black "Bryakin_Mikhail"]
[Result "1-0"]
[WhiteElo "2625"]
[BlackElo "2510"]
[TimeControl "180+2"]
[EndTime "16:07:45 PST"]
[Termination "Man-Chuk won by resignation"]

1. d4 {[%clk 0:03:00.4]} 1... d5 {[%clk 0:03:00.5]} 2. Bf4 {[%clk 0:03:00.3]}
2... Nf6 {[%clk 0:03:01.1]} 3. e3 {[%clk 0:02:59.6]} 3... c5 {[%clk 0:03:02.4]}
4. c3 {[%clk 0:02:59.8]} 4... Nc6 {[%clk 0:03:03.7]} 5. Nd2 {[%clk 0:02:59.2]}
5... Qb6 {[%clk 0:03:03.9]} 6. Qb3 {[%clk 0:02:57]} 6... g6 {[%clk 0:03:04.1]}
7. Ngf3 {[%clk 0:02:51.8]} 7... Bg7 {[%clk 0:03:05.2]} 8. h3 {[%clk 0:02:52.5]}
8... O-O {[%clk 0:03:01.3]} 9. Be2 {[%clk 0:02:53.1]} 9... c4 {[%clk 0:02:58.4]}
10. Qxb6 {[%clk 0:02:52.9]} 10... axb6 {[%clk 0:02:58.2]} 11. a3 {[%clk
0:02:54.5]} 11... b5 {[%clk 0:02:58.2]} 12. O-O {[%clk 0:02:53.5]} 12... h6
{[%clk 0:02:57.9]} 13. Bh2 {[%clk 0:02:49.1]} 13... g5 {[%clk 0:02:57.9]} 14.
Rfe1 {[%clk 0:02:46.6]} 14... Bf5 {[%clk 0:02:58.7]} 15. Rac1 {[%clk 0:02:45.2]}
15... e6 {[%clk 0:02:58.5]} 16. Bd1 {[%clk 0:02:45.2]} 16... Rfe8 {[%clk
0:02:45.4]} 17. Ne5 {[%clk 0:02:43.7]} 17... Nxe5 {[%clk 0:02:45.2]} 18. Bxe5
{[%clk 0:02:43.6]} 18... Nd7 {[%clk 0:02:46.3]} 19. Bxg7 {[%clk 0:02:44]} 19...
Kxg7 {[%clk 0:02:48.2]} 20. e4 {[%clk 0:02:43.2]} 20... Bg6 {[%clk 0:02:40.3]}
21. Bc2 {[%clk 0:02:27.7]} 21... Nb6 {[%clk 0:02:40.4]} 22. g3 {[%clk 0:02:28]}
22... Na4 {[%clk 0:02:38.3]} 23. Bxa4 {[%clk 0:02:27.6]} 23... bxa4 {[%clk
0:02:40.2]} 24. Re2 {[%clk 0:02:24.1]} 24... Rac8 {[%clk 0:02:20.1]} 25. Rce1
{[%clk 0:02:22.8]} 25... Red8 {[%clk 0:02:20.6]} 26. exd5 {[%clk 0:02:20.3]}
26... Rxd5 {[%clk 0:01:57.7]} 27. Re5 {[%clk 0:02:20.4]} 27... Kf6 {[%clk
0:01:57]} 28. Ne4+ {[%clk 0:02:18.5]} 28... Kg7 {[%clk 0:01:44.4]} 29. Nc5
{[%clk 0:01:52.3]} 29... Rxe5 {[%clk 0:01:21.3]} 30. Rxe5 {[%clk 0:01:52.2]}
30... b5 {[%clk 0:01:21.1]} 31. Na6 {[%clk 0:01:48.2]} 31... Rc6 {[%clk
0:01:13.6]} 32. Nb4 {[%clk 0:01:47.4]} 32... Rb6 {[%clk 0:01:14.1]} 33. f3
{[%clk 0:01:47.4]} 33... Kf6 {[%clk 0:01:01.8]} 34. Kf2 {[%clk 0:01:47.1]} 34...
Rb7 {[%clk 0:01:03.2]} 35. Rc5 {[%clk 0:01:37.6]} 35... Bf5 {[%clk 0:00:59]} 36.
g4 {[%clk 0:01:37.6]} 36... Bb1 {[%clk 0:00:55.8]} 37. Rc6 {[%clk 0:01:26.9]}
37... Bg6 {[%clk 0:00:37.2]} 38. Kg3 {[%clk 0:01:22.9]} 38... h5 {[%clk
0:00:37.8]} 39. Rc5 {[%clk 0:01:21.1]} 39... hxg4 {[%clk 0:00:37]} 40. hxg4
{[%clk 0:01:21.6]} 40... Bb1 {[%clk 0:00:32.2]} 41. Kf2 {[%clk 0:01:19]} 41...
Kg6 {[%clk 0:00:30.8]} 42. Ke3 {[%clk 0:01:19.3]} 42... Kf6 {[%clk 0:00:31.4]}
43. Rc8 {[%clk 0:01:17.2]} 43... Bg6 {[%clk 0:00:29.7]} 44. Nc6 {[%clk
0:01:17.3]} 44... Bc2 {[%clk 0:00:21.4]} 45. Ne5 {[%clk 0:01:14.5]} 45... Kg7
{[%clk 0:00:21.7]} 46. Rd8 {[%clk 0:01:05.2]} 46... Kf6 {[%clk 0:00:15.7]} 47.
Nc6 {[%clk 0:01:05.1]} 47... Bd3 {[%clk 0:00:13.9]} 48. Rg8 {[%clk 0:01:00.9]}
48... Bg6 {[%clk 0:00:14.5]} 49. f4 {[%clk 0:00:59.5]} 49... gxf4+ {[%clk
0:00:15.3]} 50. Kxf4 {[%clk 0:01:00.6]} 50... e5+ {[%clk 0:00:10.4]} 51. dxe5+
{[%clk 0:01:02.5]} 51... Ke6 {[%clk 0:00:11.7]} 52. Nd8+ {[%clk 0:01:04.1]} 1-0

[Event "*** MasterClass Titled Tuesday Blitz"]
[Site "Chess.com"]
[Date "2017.11.07"]
[Round "9"]
[White "rpragchess"]
[Black "dretch"]
[Result "0-1"]
[WhiteElo "2297"]
[BlackElo "2600"]
[TimeControl "180+2"]
[EndTime "16:07:45 PST"]
[Termination "dretch won by resignation"]

1. e4 {[%clk 0:03:01.9]} 1... e6 {[%clk 0:03:01.1]} 2. d3 {[%clk 0:03:01.5]}
2... d5 {[%clk 0:03:02.7]} 3. Qe2 {[%clk 0:03:01.8]} 3... Nc6 {[%clk 0:03:02.9]}
4. Nf3 {[%clk 0:03:02.5]} 4... dxe4 {[%clk 0:03:01.9]} 5. dxe4 {[%clk
0:03:03.7]} 5... e5 {[%clk 0:03:03.6]} 6. c3 {[%clk 0:03:05.1]} 6... Bd6 {[%clk
0:03:04.4]} 7. Qc2 {[%clk 0:03:04]} 7... Nf6 {[%clk 0:03:04.9]} 8. Nbd2 {[%clk
0:03:05.1]} 8... O-O {[%clk 0:03:05.1]} 9. Be2 {[%clk 0:03:05.6]} 9... Bg4
{[%clk 0:03:03.8]} 10. O-O {[%clk 0:03:05.3]} 10... Ne7 {[%clk 0:02:54.7]} 11.
Nc4 {[%clk 0:03:05.6]} 11... Ng6 {[%clk 0:02:55]} 12. Rd1 {[%clk 0:03:06.6]}
12... Qe7 {[%clk 0:02:54.2]} 13. Ne3 {[%clk 0:02:58.5]} 13... Nf4 {[%clk
0:02:41.5]} 14. Nxg4 {[%clk 0:02:57]} 14... Nxg4 {[%clk 0:02:39.8]} 15. h3
{[%clk 0:02:28]} 15... Nxe2+ {[%clk 0:02:17]} 16. Qxe2 {[%clk 0:02:29.9]} 16...
Nf6 {[%clk 0:02:18.5]} 17. Nh4 {[%clk 0:02:18]} 17... g6 {[%clk 0:02:16.2]} 18.
Bg5 {[%clk 0:02:16.5]} 18... Qe6 {[%clk 0:02:17]} 19. Nf3 {[%clk 0:02:09.1]}
19... Nd7 {[%clk 0:02:13.3]} 20. Nd2 {[%clk 0:02:09.3]} 20... Nb6 {[%clk
0:02:00.1]} 21. a4 {[%clk 0:02:08]} 21... a5 {[%clk 0:02:00.6]} 22. Be3 {[%clk
0:02:08.3]} 22... Be7 {[%clk 0:01:55.8]} 23. Qb5 {[%clk 0:02:07.7]} 23... Ra6
{[%clk 0:01:53.2]} 24. Bxb6 {[%clk 0:01:46]} 24... Rxb6 {[%clk 0:01:53.5]} 25.
Qxa5 {[%clk 0:01:47.1]} 25... Rxb2 {[%clk 0:01:51.8]} 26. Qxc7 {[%clk
0:01:47.3]} 26... Rc8 {[%clk 0:01:38.4]} 27. Qa5 {[%clk 0:01:47.2]} 27... Rc5
{[%clk 0:01:15.6]} 28. Qa8+ {[%clk 0:01:45.6]} 28... Kg7 {[%clk 0:01:16.2]} 29.
Rab1 {[%clk 0:01:39.4]} 29... Rxb1 {[%clk 0:01:14.8]} 30. Rxb1 {[%clk
0:01:39.6]} 30... Rxc3 {[%clk 0:01:12.1]} 31. Qxb7 {[%clk 0:01:39]} 31... Rc2
{[%clk 0:01:10.3]} 32. Rb6 {[%clk 0:01:04.9]} 32... Bd6 {[%clk 0:00:52.5]} 33.
Qd5 {[%clk 0:00:22]} 33... Qxd5 {[%clk 0:00:42]} 34. exd5 {[%clk 0:00:23.3]}
34... Bc5 {[%clk 0:00:43.2]} 35. Rb5 {[%clk 0:00:24]} 35... Bd4 {[%clk
0:00:29.3]} 36. Ne4 {[%clk 0:00:18.1]} 36... f5 {[%clk 0:00:26.2]} 37. Rb7+
{[%clk 0:00:16.9]} 37... Kh6 {[%clk 0:00:22.2]} 38. Nf6 {[%clk 0:00:17.8]} 38...
e4 {[%clk 0:00:18.5]} 39. Rxh7+ {[%clk 0:00:17.6]} 39... Kg5 {[%clk 0:00:19.1]}
40. Ne8 {[%clk 0:00:14.3]} 40... Bxf2+ {[%clk 0:00:19.8]} 41. Kh2 {[%clk
0:00:15.3]} 41... Kf4 {[%clk 0:00:20.7]} 42. h4 {[%clk 0:00:13.1]} 42... Bg3+
{[%clk 0:00:21.7]} 43. Kh3 {[%clk 0:00:14]} 43... Rc1 {[%clk 0:00:22.6]} 0-1

[Event "*** MasterClass Titled Tuesday Blitz"]
[Site "Chess.com"]
[Date "2017.11.07"]
[Round "9"]
[White "Koksik_13"]
[Black "Rhinos1"]
[Result "1-0"]
[WhiteElo "2141"]
[BlackElo "2058"]
[TimeControl "180+2"]
[EndTime "16:07:46 PST"]
[Termination "Koksik_13 won by checkmate"]

1. e4 {[%clk 0:03:01.9]} 1... e5 {[%clk 0:03:00.9]} 2. Nf3 {[%clk 0:03:02.7]}
2... Nc6 {[%clk 0:03:02.4]} 3. Nc3 {[%clk 0:03:04.1]} 3... Nf6 {[%clk
0:03:02.4]} 4. Bb5 {[%clk 0:03:05.3]} 4... d6 {[%clk 0:03:02.1]} 5. d4 {[%clk
0:03:06.2]} 5... Bd7 {[%clk 0:03:00.6]} 6. O-O {[%clk 0:03:04.3]} 6... Be7
{[%clk 0:02:52.4]} 7. dxe5 {[%clk 0:03:04.7]} 7... Nxe5 {[%clk 0:02:49.7]} 8.
Bxd7+ {[%clk 0:03:05.5]} 8... Nexd7 {[%clk 0:02:50]} 9. Nd4 {[%clk 0:03:06.6]}
9... O-O {[%clk 0:02:50.6]} 10. Nf5 {[%clk 0:03:07.4]} 10... Re8 {[%clk
0:02:43.2]} 11. Bg5 {[%clk 0:03:07.7]} 11... Ne5 {[%clk 0:02:16.2]} 12. Nxe7+
{[%clk 0:03:07.6]} 12... Qxe7 {[%clk 0:02:12.4]} 13. Nd5 {[%clk 0:03:08.1]}
13... Qd8 {[%clk 0:02:13.7]} 14. f4 {[%clk 0:03:06.7]} 14... Ned7 {[%clk
0:02:05.8]} 15. e5 {[%clk 0:02:58.2]} 15... dxe5 {[%clk 0:02:01.8]} 16. fxe5
{[%clk 0:02:59.2]} 16... Rxe5 {[%clk 0:02:01.2]} 17. Bxf6 {[%clk 0:02:43.2]}
17... Nxf6 {[%clk 0:01:49.5]} 18. Nxf6+ {[%clk 0:02:42.5]} 18... gxf6 {[%clk
0:01:51.4]} 19. Qf3 {[%clk 0:02:44.1]} 19... Qd4+ {[%clk 0:01:41.6]} 20. Kh1
{[%clk 0:02:44.7]} 20... Rg5 {[%clk 0:01:24.5]} 21. c3 {[%clk 0:02:39.4]} 21...
Qb6 {[%clk 0:01:20.4]} 22. b3 {[%clk 0:02:34.5]} 22... Re8 {[%clk 0:01:18.5]}
23. Rae1 {[%clk 0:02:33]} 23... Rxe1 {[%clk 0:00:58]} 24. Rxe1 {[%clk
0:02:33.8]} 24... Rg6 {[%clk 0:00:56.9]} 25. h3 {[%clk 0:02:29]} 25... Qd6
{[%clk 0:00:56.1]} 26. Rd1 {[%clk 0:02:17.8]} 26... Qg3 {[%clk 0:00:37.9]} 27.
Qxg3 {[%clk 0:02:11.6]} 27... Rxg3 {[%clk 0:00:38.4]} 28. c4 {[%clk 0:02:13.1]}
28... Rc3 {[%clk 0:00:26.7]} 29. Rd7 {[%clk 0:02:13.4]} 29... Rc2 {[%clk
0:00:27.6]} 30. Rxc7 {[%clk 0:02:10.7]} 30... Rxa2 {[%clk 0:00:26.2]} 31. Rxb7
{[%clk 0:02:11.4]} 31... a5 {[%clk 0:00:27.5]} 32. c5 {[%clk 0:01:53.3]} 32...
Rb2 {[%clk 0:00:17.6]} 33. Rb5 {[%clk 0:01:50.1]} 33... Ra2 {[%clk 0:00:12.8]}
34. Rb7 {[%clk 0:01:15.8]} 34... Rc2 {[%clk 0:00:11.7]} 35. Rb5 {[%clk
0:01:10.6]} 35... Ra2 {[%clk 0:00:12.8]} 36. Kh2 {[%clk 0:01:05.5]} 36... a4
{[%clk 0:00:14.1]} 37. b4 {[%clk 0:01:00.4]} 37... Rb2 {[%clk 0:00:14.9]} 38. c6
{[%clk 0:01:01]} 38... Rc2 {[%clk 0:00:15.4]} 39. Rc5 {[%clk 0:01:00.1]} 39...
Rb2 {[%clk 0:00:15.8]} 40. c7 {[%clk 0:01:00.4]} 40... Rxb4 {[%clk 0:00:15]} 41.
c8=Q+ {[%clk 0:01:01.4]} 41... Kg7 {[%clk 0:00:16.9]} 42. Qg4+ {[%clk
0:01:02.1]} 42... Rxg4 {[%clk 0:00:17.4]} 43. hxg4 {[%clk 0:01:01.9]} 43... Kg6
{[%clk 0:00:18.8]} 44. Ra5 {[%clk 0:01:02.9]} 44... h6 {[%clk 0:00:20.4]} 45.
Rxa4 {[%clk 0:01:04.2]} 45... Kg5 {[%clk 0:00:22.3]} 46. Kg3 {[%clk 0:01:04.8]}
46... f5 {[%clk 0:00:22.8]} 47. Ra5 {[%clk 0:01:06.3]} 47... f6 {[%clk
0:00:23.5]} 48. Rxf5+ {[%clk 0:01:07.7]} 48... Kg6 {[%clk 0:00:25.4]} 49. Kh4
{[%clk 0:01:09]} 49... h5 {[%clk 0:00:27.3]} 50. Rxh5 {[%clk 0:01:09.8]} 50...
Kf7 {[%clk 0:00:24]} 51. Kg3 {[%clk 0:01:09.8]} 51... Kg7 {[%clk 0:00:25.9]} 52.
Kf4 {[%clk 0:01:11.3]} 52... Kg6 {[%clk 0:00:27.8]} 53. Ke4 {[%clk 0:01:12.4]}
53... Kf7 {[%clk 0:00:29.7]} 54. Kf5 {[%clk 0:01:14]} 54... Kg7 {[%clk
0:00:31.6]} 55. Rh4 {[%clk 0:01:15.6]} 55... Kg8 {[%clk 0:00:32.5]} 56. Kxf6
{[%clk 0:01:14.5]} 56... Kf8 {[%clk 0:00:33.3]} 57. Rh8# {[%clk 0:01:15.8]} 1-0

[Event "*** MasterClass Titled Tuesday Blitz"]
[Site "Chess.com"]
[Date "2017.11.07"]
[Round "9"]
[White "lukas_111111"]
[Black "Khamrakulov_Djurabek"]
[Result "0-1"]
[WhiteElo "2369"]
[BlackElo "2640"]
[TimeControl "180+2"]
[EndTime "16:07:47 PST"]
[Termination "Khamrakulov_Djurabek won by resignation"]

1. e4 {[%clk 0:03:01.9]} 1... c6 {[%clk 0:03:00.7]} 2. d4 {[%clk 0:03:02.5]}
2... d5 {[%clk 0:03:02.3]} 3. e5 {[%clk 0:03:04]} 3... Bf5 {[%clk 0:03:02.9]} 4.
Nd2 {[%clk 0:03:05.1]} 4... e6 {[%clk 0:03:00.6]} 5. Nb3 {[%clk 0:03:06.2]} 5...
Nd7 {[%clk 0:03:00]} 6. Nf3 {[%clk 0:03:06.4]} 6... a6 {[%clk 0:02:58.3]} 7. Be2
{[%clk 0:03:06.8]} 7... c5 {[%clk 0:02:59.2]} 8. c3 {[%clk 0:03:07.9]} 8... Ne7
{[%clk 0:02:57.8]} 9. O-O {[%clk 0:03:03.2]} 9... Nc6 {[%clk 0:02:58.7]} 10. Be3
{[%clk 0:03:00.3]} 10... Be7 {[%clk 0:02:48.4]} 11. Nxc5 {[%clk 0:02:56.3]}
11... Bxc5 {[%clk 0:02:42.7]} 12. dxc5 {[%clk 0:02:56.3]} 12... Ndxe5 {[%clk
0:02:40.2]} 13. Nxe5 {[%clk 0:02:55.9]} 13... Nxe5 {[%clk 0:02:41.5]} 14. Bd4
{[%clk 0:02:21.8]} 14... f6 {[%clk 0:02:41.4]} 15. Bxe5 {[%clk 0:02:03.8]} 15...
fxe5 {[%clk 0:02:41.8]} 16. Bh5+ {[%clk 0:02:04.3]} 16... g6 {[%clk 0:02:35.6]}
17. Be2 {[%clk 0:02:04.2]} 17... h5 {[%clk 0:02:32.2]} 18. Qd2 {[%clk
0:02:02.1]} 18... Qe7 {[%clk 0:02:18.8]} 19. Qe3 {[%clk 0:01:59.3]} 19... e4
{[%clk 0:02:17.8]} 20. b4 {[%clk 0:01:59.8]} 20... O-O {[%clk 0:02:15.5]} 21. f3
{[%clk 0:01:53.2]} 21... Qg7 {[%clk 0:01:59]} 22. fxe4 {[%clk 0:01:50.3]} 22...
Bxe4 {[%clk 0:01:59.9]} 23. Bf3 {[%clk 0:01:33.9]} 23... Bxf3 {[%clk 0:01:48.9]}
24. Qxe6+ {[%clk 0:01:25]} 24... Kh8 {[%clk 0:01:46.8]} 25. Rxf3 {[%clk
0:01:23]} 25... Rxf3 {[%clk 0:01:46.6]} 26. gxf3 {[%clk 0:01:22.4]} 26... Qxc3
{[%clk 0:01:46.4]} 27. Re1 {[%clk 0:01:16.6]} 27... Qxf3 {[%clk 0:01:39.8]} 28.
Rf1 {[%clk 0:00:46.7]} 28... Qc3 {[%clk 0:01:31]} 29. Qxd5 {[%clk 0:00:33]}
29... Re8 {[%clk 0:01:23.6]} 30. Qf7 {[%clk 0:00:25.7]} 30... Qd4+ {[%clk
0:01:17]} 31. Kh1 {[%clk 0:00:24.8]} 31... Qe4+ {[%clk 0:01:09.6]} 32. Kg1
{[%clk 0:00:24.3]} 32... h4 {[%clk 0:00:46]} 33. Qf6+ {[%clk 0:00:23.6]} 33...
Kh7 {[%clk 0:00:47.1]} 34. Qf7+ {[%clk 0:00:24.8]} 34... Kh6 {[%clk 0:00:48.5]}
35. Qf4+ {[%clk 0:00:25.3]} 35... Kh5 {[%clk 0:00:43.1]} 36. Qf7 {[%clk
0:00:11.3]} 36... Qg4+ {[%clk 0:00:24.9]} 37. Kh1 {[%clk 0:00:11.9]} 37... h3
{[%clk 0:00:20.2]} 38. Qf2 {[%clk 0:00:05.3]} 38... Re2 {[%clk 0:00:20]} 39. Qf3
{[%clk 0:00:03.6]} 39... Qxf3+ {[%clk 0:00:19.2]} 40. Rxf3 {[%clk 0:00:04.5]}
40... Re1+ {[%clk 0:00:20.4]} 0-1